[Event "*** SCC Grand Prix: Titled Tuesday Blitz"]
[Site "Chess.com"]
[Date "2020.06.02"]
[Round "5"]
[White "davidkalashian"]
[Black "StephenDedalus83"]
[Result "1-0"]
[WhiteElo "2574"]
[BlackElo "2715"]
[TimeControl "180+1"]
[EndTime "10:58:50 PDT"]
[Termination "davidkalashian won on time"]

1. d4 {[%clk 0:02:57.5]} 1... g6 {[%clk 0:03:00.9]} 2. e4 {[%clk 0:02:55.8]}
2... Bg7 {[%clk 0:03:01.1]} 3. Nc3 {[%clk 0:02:53.4]} 3... d6 {[%clk 0:03:00.9]}
4. f4 {[%clk 0:02:49.9]} 4... a6 {[%clk 0:02:58.5]} 5. Nf3 {[%clk 0:02:37.8]}
5... b5 {[%clk 0:02:58.3]} 6. Bd3 {[%clk 0:02:29.3]} 6... Bb7 {[%clk 0:02:58]}
7. O-O {[%clk 0:02:11]} 7... Nd7 {[%clk 0:02:49.7]} 8. e5 {[%clk 0:02:03.8]}
8... Nh6 {[%clk 0:02:49]} 9. Ng5 {[%clk 0:02:00.1]} 9... e6 {[%clk 0:02:40.5]}
10. Be4 {[%clk 0:01:59.4]} 10... Bxe4 {[%clk 0:02:37.9]} 11. Ncxe4 {[%clk
0:02:00.2]} 11... d5 {[%clk 0:02:24.6]} 12. Ng3 {[%clk 0:01:57.3]} 12... c5
{[%clk 0:02:22]} 13. c3 {[%clk 0:01:56.3]} 13... Qc7 {[%clk 0:02:00.4]} 14. Be3
{[%clk 0:01:55.1]} 14... O-O {[%clk 0:01:52.4]} 15. h4 {[%clk 0:01:40.7]} 15...
Rfc8 {[%clk 0:01:50]} 16. h5 {[%clk 0:01:39.9]} 16... Nf8 {[%clk 0:01:49.7]} 17.
hxg6 {[%clk 0:01:36.9]} 17... hxg6 {[%clk 0:01:43.9]} 18. Rc1 {[%clk 0:01:34.1]}
18... cxd4 {[%clk 0:01:36.7]} 19. Bxd4 {[%clk 0:01:31.2]} 19... Nf5 {[%clk
0:01:33]} 20. Nxf5 {[%clk 0:01:30.6]} 20... exf5 {[%clk 0:01:32.9]} 21. g4
{[%clk 0:01:29]} 21... Qd7 {[%clk 0:01:24.1]} 22. Qd3 {[%clk 0:01:28]} 22... Nh7
{[%clk 0:01:16.3]} 23. Nxh7 {[%clk 0:01:17.9]} 23... Kxh7 {[%clk 0:01:15.5]} 24.
Rc2 {[%clk 0:01:15.3]} 24... Kg8 {[%clk 0:00:42.1]} 25. Rg2 {[%clk 0:01:13.3]}
25... Kf8 {[%clk 0:00:31.3]} 26. gxf5 {[%clk 0:01:01.5]} 26... Qxf5 {[%clk
0:00:30.5]} 27. Qxf5 {[%clk 0:01:01.2]} 27... gxf5 {[%clk 0:00:30.4]} 28. Rg5
{[%clk 0:01:02.1]} 28... Rc6 {[%clk 0:00:27.6]} 29. Rxf5 {[%clk 0:01:00.1]}
29... Ke7 {[%clk 0:00:23.9]} 30. Kf2 {[%clk 0:00:58.8]} 30... Rg6 {[%clk
0:00:21.7]} 31. Rg1 {[%clk 0:00:58]} 31... Rxg1 {[%clk 0:00:17]} 32. Kxg1 {[%clk
0:00:58.9]} 32... Rh8 {[%clk 0:00:16.5]} 33. Rg5 {[%clk 0:00:52.8]} 33... Bh6
{[%clk 0:00:16.5]} 34. Rg4 {[%clk 0:00:46.3]} 34... Ke6 {[%clk 0:00:16.4]} 35.
Kf2 {[%clk 0:00:46]} 35... Bf8 {[%clk 0:00:13.8]} 36. Rg5 {[%clk 0:00:41.4]}
36... f6 {[%clk 0:00:09]} 37. f5+ {[%clk 0:00:39.6]} 37... Kf7 {[%clk
0:00:06.8]} 38. e6+ {[%clk 0:00:37.3]} 38... Ke8 {[%clk 0:00:05.6]} 39. Bxf6
{[%clk 0:00:33.8]} 39... Rh2+ {[%clk 0:00:05.1]} 40. Kf3 {[%clk 0:00:32.8]}
40... Rxb2 {[%clk 0:00:04.1]} 41. Rg8 {[%clk 0:00:31.7]} 41... Rb1 {[%clk
0:00:03.2]} 42. Bg7 {[%clk 0:00:30.7]} 42... Rf1+ {[%clk 0:00:01.5]} 43. Ke3
{[%clk 0:00:26.1]} 1-0

[Event "*** SCC Grand Prix: Titled Tuesday Blitz"]
[Site "Chess.com"]
[Date "2020.06.02"]
[Round "5"]
[White "antoszu"]
[Black "CyberneticLion"]
[Result "1-0"]
[WhiteElo "2546"]
[BlackElo "2386"]
[TimeControl "180+1"]
[EndTime "10:58:50 PDT"]
[Termination "antoszu won by resignation"]

1. d4 {[%clk 0:03:00.9]} 1... d5 {[%clk 0:02:55.1]} 2. c4 {[%clk 0:02:58.7]}
2... e6 {[%clk 0:02:51.6]} 3. Nc3 {[%clk 0:02:58.1]} 3... Nf6 {[%clk 0:02:50.4]}
4. cxd5 {[%clk 0:02:58.1]} 4... exd5 {[%clk 0:02:51.3]} 5. Bg5 {[%clk
0:02:58.4]} 5... c6 {[%clk 0:02:50.9]} 6. e3 {[%clk 0:02:58.6]} 6... Be7 {[%clk
0:02:50.9]} 7. Bd3 {[%clk 0:02:58.1]} 7... O-O {[%clk 0:02:47.5]} 8. Nf3 {[%clk
0:02:51.5]} 8... Ne4 {[%clk 0:02:40.2]} 9. Bxe7 {[%clk 0:02:50]} 9... Qxe7
{[%clk 0:02:41.1]} 10. h3 {[%clk 0:02:48.5]} 10... Bf5 {[%clk 0:02:36.4]} 11.
O-O {[%clk 0:02:47.3]} 11... Nd7 {[%clk 0:02:33.6]} 12. Qc2 {[%clk 0:02:45.8]}
12... Bg6 {[%clk 0:02:30.1]} 13. Rab1 {[%clk 0:02:22.5]} 13... a5 {[%clk
0:02:28.3]} 14. Bxe4 {[%clk 0:02:21.7]} 14... Bxe4 {[%clk 0:02:23.3]} 15. Nxe4
{[%clk 0:02:19.7]} 15... Qxe4 {[%clk 0:02:24.2]} 16. Qxe4 {[%clk 0:02:19]} 16...
dxe4 {[%clk 0:02:25.1]} 17. Nd2 {[%clk 0:02:19.7]} 17... f5 {[%clk 0:02:20.2]}
18. Rfc1 {[%clk 0:02:18.8]} 18... Rfc8 {[%clk 0:02:16.6]} 19. Nc4 {[%clk
0:02:09]} 19... Rc7 {[%clk 0:02:15.2]} 20. Rc3 {[%clk 0:01:43.1]} 20... Kf7
{[%clk 0:02:13.6]} 21. d5 {[%clk 0:01:21.8]} 21... g6 {[%clk 0:01:56.9]} 22. Rd1
{[%clk 0:01:19.8]} 22... Ra6 {[%clk 0:01:49.8]} 23. dxc6 {[%clk 0:01:17]} 23...
bxc6 {[%clk 0:01:45.3]} 24. b3 {[%clk 0:00:56.7]} 24... Ke7 {[%clk 0:01:41]} 25.
Nb2 {[%clk 0:00:56.9]} 25... c5 {[%clk 0:01:37.7]} 26. Na4 {[%clk 0:00:52.7]}
26... Rd6 {[%clk 0:01:37.3]} 27. Rdc1 {[%clk 0:00:50.7]} 27... Rd5 {[%clk
0:01:34.6]} 28. Kf1 {[%clk 0:00:47.4]} 28... Kd6 {[%clk 0:01:34.7]} 29. Ke2
{[%clk 0:00:47.4]} 29... Ne5 {[%clk 0:01:34.2]} 30. Nb2 {[%clk 0:00:46.4]} 30...
Kc6 {[%clk 0:01:26.7]} 31. a3 {[%clk 0:00:39.1]} 31... Rcd7 {[%clk 0:01:22.5]}
32. R1c2 {[%clk 0:00:36.7]} 32... Nd3 {[%clk 0:01:15.2]} 33. Na4 {[%clk
0:00:35.7]} 33... Kb5 {[%clk 0:01:10.7]} 34. f3 {[%clk 0:00:34.3]} 34... h5
{[%clk 0:01:01.9]} 35. Rc4 {[%clk 0:00:33.3]} 35... exf3+ {[%clk 0:00:52.6]} 36.
gxf3 {[%clk 0:00:32.6]} 36... f4 {[%clk 0:00:45]} 37. Nc3+ {[%clk 0:00:31.8]}
37... Kc6 {[%clk 0:00:43]} 38. Nxd5 {[%clk 0:00:32.2]} 38... Rxd5 {[%clk
0:00:43.9]} 39. Rd2 {[%clk 0:00:26.9]} 39... Ne5 {[%clk 0:00:36]} 40. Rxd5
{[%clk 0:00:26.2]} 40... Kxd5 {[%clk 0:00:36.9]} 41. Rxf4 {[%clk 0:00:25.9]}
41... c4 {[%clk 0:00:36]} 42. bxc4+ {[%clk 0:00:25.5]} 42... Nxc4 {[%clk
0:00:36.9]} 43. a4 {[%clk 0:00:24.1]} 43... Nb6 {[%clk 0:00:29.7]} 44. Kd3
{[%clk 0:00:20.7]} 44... Nd7 {[%clk 0:00:27]} 45. Rd4+ {[%clk 0:00:20.3]} 45...
Kc6 {[%clk 0:00:26.4]} 46. Rxd7 {[%clk 0:00:20.7]} 46... Kxd7 {[%clk 0:00:27.3]}
47. Kc4 {[%clk 0:00:21.2]} 47... Kc6 {[%clk 0:00:27.7]} 48. f4 {[%clk
0:00:21.2]} 48... Kd6 {[%clk 0:00:27.7]} 49. e4 {[%clk 0:00:21.1]} 49... Ke6
{[%clk 0:00:28]} 50. h4 {[%clk 0:00:20.9]} 50... Kd6 {[%clk 0:00:20.1]} 51. Kb5
{[%clk 0:00:20.5]} 51... Kc7 {[%clk 0:00:20.1]} 52. Kxa5 {[%clk 0:00:20.8]}
52... Kc6 {[%clk 0:00:21]} 53. Kb4 {[%clk 0:00:21.2]} 53... g5 {[%clk
0:00:21.9]} 54. fxg5 {[%clk 0:00:20.7]} 54... Kd6 {[%clk 0:00:21.6]} 1-0

[Event "*** SCC Grand Prix: Titled Tuesday Blitz"]
[Site "Chess.com"]
[Date "2020.06.02"]
[Round "5"]
[White "Tenamu"]
[Black "Efremov_Vlad"]
[Result "1-0"]
[WhiteElo "2360"]
[BlackElo "2165"]
[TimeControl "180+1"]
[EndTime "10:58:50 PDT"]
[Termination "Tenamu won on time"]

1. e4 {[%clk 0:03:00.9]} 1... c5 {[%clk 0:02:59.7]} 2. Nf3 {[%clk 0:03:00.6]}
2... Nc6 {[%clk 0:02:59.5]} 3. Bb5 {[%clk 0:02:57.3]} 3... g6 {[%clk 0:02:58.3]}
4. O-O {[%clk 0:02:56.3]} 4... Bg7 {[%clk 0:02:57.9]} 5. c3 {[%clk 0:02:55.9]}
5... Nf6 {[%clk 0:02:48.7]} 6. Re1 {[%clk 0:02:53.8]} 6... O-O {[%clk
0:02:47.4]} 7. d4 {[%clk 0:02:52.3]} 7... d5 {[%clk 0:02:43.2]} 8. e5 {[%clk
0:02:51.7]} 8... Ne4 {[%clk 0:02:43.1]} 9. Nbd2 {[%clk 0:02:46.8]} 9... Nxd2
{[%clk 0:02:16.6]} 10. Bxd2 {[%clk 0:02:42.9]} 10... Qb6 {[%clk 0:02:13.9]} 11.
Bxc6 {[%clk 0:02:23.2]} 11... bxc6 {[%clk 0:02:10.4]} 12. Qc1 {[%clk 0:02:22.8]}
12... Rb8 {[%clk 0:02:04.2]} 13. b3 {[%clk 0:02:22.2]} 13... a5 {[%clk
0:02:03.2]} 14. Bh6 {[%clk 0:02:20]} 14... a4 {[%clk 0:01:53.3]} 15. Rb1 {[%clk
0:02:18.1]} 15... Bf5 {[%clk 0:01:46.6]} 16. Rb2 {[%clk 0:02:17.7]} 16... Rfc8
{[%clk 0:01:23]} 17. Qg5 {[%clk 0:02:14.6]} 17... Rc7 {[%clk 0:01:02]} 18. Qh4
{[%clk 0:02:13.9]} 18... cxd4 {[%clk 0:00:55.5]} 19. Ng5 {[%clk 0:01:59.5]}
19... Bh8 {[%clk 0:00:37.6]} 20. cxd4 {[%clk 0:01:58.3]} 20... Qb4 {[%clk
0:00:28.3]} 21. Nf3 {[%clk 0:01:53.7]} 21... c5 {[%clk 0:00:26.7]} 22. Bd2
{[%clk 0:01:08]} 22... Qb5 {[%clk 0:00:23.3]} 23. dxc5 {[%clk 0:01:04.3]} 23...
Qxc5 {[%clk 0:00:21.9]} 24. Be3 {[%clk 0:01:02.8]} 24... Qb4 {[%clk 0:00:17.9]}
25. Bd4 {[%clk 0:00:59]} 25... Be4 {[%clk 0:00:12.3]} 26. a3 {[%clk 0:00:51.2]}
26... Qxa3 {[%clk 0:00:09.1]} 27. Ng5 {[%clk 0:00:49.4]} 27... h5 {[%clk
0:00:08.5]} 28. Nxe4 {[%clk 0:00:44]} 28... dxe4 {[%clk 0:00:08.7]} 29. Qxe4
{[%clk 0:00:44.9]} 29... Rxb3 {[%clk 0:00:08.8]} 30. Rbe2 {[%clk 0:00:39.3]}
30... Rc8 {[%clk 0:00:05.5]} 31. e6 {[%clk 0:00:37.3]} 31... f5 {[%clk
0:00:03.3]} 32. Qd5 {[%clk 0:00:33]} 32... Bxd4 {[%clk 0:00:03.2]} 33. Qxd4
{[%clk 0:00:32.6]} 33... Rc1 {[%clk 0:00:03.1]} 34. Qd8+ {[%clk 0:00:30.7]}
34... Kg7 {[%clk 0:00:03.3]} 35. Qe8 {[%clk 0:00:30.5]} 35... Rbb1 {[%clk
0:00:02.7]} 36. Qf7+ {[%clk 0:00:29.1]} 36... Kh6 {[%clk 0:00:02.7]} 37. Qf8+
{[%clk 0:00:23.6]} 37... Kg5 {[%clk 0:00:02.5]} 38. h4+ {[%clk 0:00:21.9]} 38...
Kxh4 {[%clk 0:00:02.7]} 39. Rxc1 {[%clk 0:00:18.2]} 39... Rxc1+ {[%clk
0:00:02.1]} 40. Kh2 {[%clk 0:00:18.9]} 40... Qd6+ {[%clk 0:00:02.1]} 41. g3+
{[%clk 0:00:18.9]} 41... Kg5 {[%clk 0:00:02.5]} 42. Qg7 {[%clk 0:00:14.2]} 1-0

[Event "*** SCC Grand Prix: Titled Tuesday Blitz"]
[Site "Chess.com"]
[Date "2020.06.02"]
[Round "5"]
[White "woodhy"]
[Black "Baby_Shak"]
[Result "1-0"]
[WhiteElo "2464"]
[BlackElo "2625"]
[TimeControl "180+1"]
[EndTime "10:58:51 PDT"]
[Termination "woodhy won by resignation"]

1. e4 {[%clk 0:02:53.6]} 1... e5 {[%clk 0:02:57.5]} 2. Nf3 {[%clk 0:02:51.8]}
2... Nc6 {[%clk 0:02:57.2]} 3. Bb5 {[%clk 0:02:51]} 3... a6 {[%clk 0:02:56.5]}
4. Bxc6 {[%clk 0:02:41.3]} 4... dxc6 {[%clk 0:02:57.4]} 5. O-O {[%clk
0:02:41.6]} 5... Bg4 {[%clk 0:02:56.1]} 6. h3 {[%clk 0:02:40.8]} 6... h5 {[%clk
0:02:55.2]} 7. d3 {[%clk 0:02:35.4]} 7... Qf6 {[%clk 0:02:53.2]} 8. Be3 {[%clk
0:02:19.1]} 8... Bxf3 {[%clk 0:02:51.8]} 9. Qxf3 {[%clk 0:02:20]} 9... Qxf3
{[%clk 0:02:51.2]} 10. gxf3 {[%clk 0:02:20.9]} 10... Bd6 {[%clk 0:02:50.4]} 11.
Nd2 {[%clk 0:02:21.1]} 11... Ne7 {[%clk 0:02:45.2]} 12. Rfb1 {[%clk 0:02:21]}
12... Kd7 {[%clk 0:02:23.4]} 13. Kf1 {[%clk 0:02:20.3]} 13... Ke6 {[%clk
0:02:19.8]} 14. Ke2 {[%clk 0:02:20.1]} 14... c5 {[%clk 0:02:16.2]} 15. Rg1
{[%clk 0:02:02.2]} 15... g6 {[%clk 0:02:12.6]} 16. Nc4 {[%clk 0:01:59.7]} 16...
b5 {[%clk 0:02:11.8]} 17. Nxd6 {[%clk 0:01:54.1]} 17... cxd6 {[%clk 0:02:12.7]}
18. f4 {[%clk 0:01:54.5]} 18... exf4 {[%clk 0:01:55.6]} 19. Bxf4 {[%clk
0:01:55.4]} 19... d5 {[%clk 0:01:53.9]} 20. a4 {[%clk 0:01:50.6]} 20... Nc6
{[%clk 0:01:46.6]} 21. Be3 {[%clk 0:01:46.1]} 21... d4 {[%clk 0:01:39.6]} 22.
Bd2 {[%clk 0:01:44.7]} 22... Rhc8 {[%clk 0:01:12.2]} 23. Rg5 {[%clk 0:01:38.9]}
23... Ne5 {[%clk 0:01:08.7]} 24. f4 {[%clk 0:01:35.7]} 24... Nd7 {[%clk
0:01:08]} 25. f5+ {[%clk 0:01:33.4]} 25... gxf5 {[%clk 0:01:08.1]} 26. Rxf5
{[%clk 0:01:34.3]} 26... Rg8 {[%clk 0:01:02.9]} 27. Raf1 {[%clk 0:01:20]} 27...
Rg2+ {[%clk 0:00:59.8]} 28. R1f2 {[%clk 0:01:19.9]} 28... Rxf2+ {[%clk 0:00:57]}
29. Kxf2 {[%clk 0:01:20.8]} 29... bxa4 {[%clk 0:00:56.8]} 30. Rxh5 {[%clk
0:01:19.1]} 30... Rb8 {[%clk 0:00:56.5]} 31. Bc1 {[%clk 0:01:18.8]} 31... f6
{[%clk 0:00:52.6]} 32. Rh7 {[%clk 0:01:08.6]} 32... a3 {[%clk 0:00:50.1]} 33.
bxa3 {[%clk 0:01:08.7]} 33... Rb1 {[%clk 0:00:51]} 34. Bd2 {[%clk 0:01:07]}
34... Rb2 {[%clk 0:00:50.8]} 35. h4 {[%clk 0:01:07.3]} 35... Rxc2 {[%clk
0:00:50.6]} 36. Ke2 {[%clk 0:01:07.2]} 36... Ne5 {[%clk 0:00:44]} 37. h5 {[%clk
0:01:02.8]} 37... c4 {[%clk 0:00:43.9]} 38. dxc4 {[%clk 0:01:02.3]} 38... d3+
{[%clk 0:00:36.9]} 39. Ke3 {[%clk 0:00:55]} 39... Ra2 {[%clk 0:00:32.2]} 40. Bb4
{[%clk 0:00:41.7]} 40... Re2+ {[%clk 0:00:31.1]} 41. Kd4 {[%clk 0:00:40.2]}
41... Nc6+ {[%clk 0:00:13.3]} 42. Kxd3 {[%clk 0:00:40.2]} 42... Rg2 {[%clk
0:00:12.7]} 43. Rc7 {[%clk 0:00:36.4]} 43... Ne5+ {[%clk 0:00:12.6]} 44. Ke3
{[%clk 0:00:33]} 44... Rg3+ {[%clk 0:00:11.8]} 45. Kf2 {[%clk 0:00:32]} 45...
Rf3+ {[%clk 0:00:11.9]} 46. Ke2 {[%clk 0:00:32.2]} 46... f5 {[%clk 0:00:07.1]}
47. Re7+ {[%clk 0:00:31.8]} 47... Kf6 {[%clk 0:00:06.8]} 48. Rxe5 {[%clk
0:00:31.5]} 48... Rh3 {[%clk 0:00:06.5]} 49. Rxf5+ {[%clk 0:00:31.8]} 49... Ke6
{[%clk 0:00:07.4]} 50. Ra5 {[%clk 0:00:30.3]} 50... Rh2+ {[%clk 0:00:07.2]} 51.
Kd3 {[%clk 0:00:30.1]} 51... Rh3+ {[%clk 0:00:08.1]} 52. Kd4 {[%clk 0:00:30.5]}
1-0

[Event "*** SCC Grand Prix: Titled Tuesday Blitz"]
[Site "Chess.com"]
[Date "2020.06.02"]
[Round "5"]
[White "Sergey85Rodchenkov"]
[Black "NFChess13"]
[Result "1-0"]
[WhiteElo "2533"]
[BlackElo "2377"]
[TimeControl "180+1"]
[EndTime "10:58:51 PDT"]
[Termination "Sergey85Rodchenkov won on time"]

1. e4 {[%clk 0:03:00.9]} 1... c5 {[%clk 0:02:59]} 2. Nf3 {[%clk 0:03:00.4]} 2...
e6 {[%clk 0:02:58.3]} 3. d4 {[%clk 0:03:00.6]} 3... cxd4 {[%clk 0:02:59.2]} 4.
Nxd4 {[%clk 0:03:01.1]} 4... Nc6 {[%clk 0:02:59.8]} 5. Nc3 {[%clk 0:02:59.3]}
5... Qc7 {[%clk 0:02:59.6]} 6. Ndb5 {[%clk 0:02:57.1]} 6... Qb8 {[%clk
0:02:57.9]} 7. Be2 {[%clk 0:02:57]} 7... a6 {[%clk 0:02:57.4]} 8. Nd4 {[%clk
0:02:56.7]} 8... Qc7 {[%clk 0:02:56.3]} 9. O-O {[%clk 0:02:55.8]} 9... Nf6
{[%clk 0:02:55.8]} 10. Be3 {[%clk 0:02:55.1]} 10... Bb4 {[%clk 0:02:55.6]} 11.
Na4 {[%clk 0:02:53.7]} 11... O-O {[%clk 0:02:55.1]} 12. c4 {[%clk 0:02:52.3]}
12... Be7 {[%clk 0:02:53.8]} 13. c5 {[%clk 0:02:13.3]} 13... Nxe4 {[%clk
0:02:53.2]} 14. Qc2 {[%clk 0:02:10.9]} 14... f5 {[%clk 0:02:50.9]} 15. Rfd1
{[%clk 0:02:00.3]} 15... Nxd4 {[%clk 0:02:38.1]} 16. Bxd4 {[%clk 0:01:58.6]}
16... b5 {[%clk 0:02:34.6]} 17. Nb6 {[%clk 0:01:53.2]} 17... Rb8 {[%clk
0:02:27.3]} 18. Nxc8 {[%clk 0:01:41.5]} 18... Rbxc8 {[%clk 0:02:22.5]} 19. b4
{[%clk 0:01:41.5]} 19... d6 {[%clk 0:02:04.2]} 20. Qb3 {[%clk 0:01:40.7]} 20...
d5 {[%clk 0:02:02.5]} 21. a4 {[%clk 0:01:39]} 21... Rb8 {[%clk 0:01:46.8]} 22.
axb5 {[%clk 0:01:37.6]} 22... axb5 {[%clk 0:01:47.7]} 23. Ra6 {[%clk 0:01:37.3]}
23... Qd7 {[%clk 0:01:36]} 24. Be5 {[%clk 0:01:30.1]} 24... Ra8 {[%clk
0:01:35.3]} 25. c6 {[%clk 0:01:24.1]} 25... Qc8 {[%clk 0:01:30.6]} 26. Rxa8
{[%clk 0:01:08.5]} 26... Qxa8 {[%clk 0:01:31.5]} 27. Bxb5 {[%clk 0:01:08.9]}
27... Qa7 {[%clk 0:01:21.6]} 28. Bd4 {[%clk 0:01:06.7]} 28... Qb8 {[%clk
0:01:20]} 29. Qa4 {[%clk 0:00:59.7]} 29... Bd6 {[%clk 0:01:15.5]} 30. g3 {[%clk
0:00:55.6]} 30... e5 {[%clk 0:01:13.2]} 31. Ba7 {[%clk 0:00:54.5]} 31... Qc7
{[%clk 0:01:04.6]} 32. Qa5 {[%clk 0:00:53.8]} 32... Nc3 {[%clk 0:00:54.6]} 33.
Bb6 {[%clk 0:00:44.5]} 33... Qf7 {[%clk 0:00:44.9]} 34. Rd3 {[%clk 0:00:41]}
34... Ne4 {[%clk 0:00:28.2]} 35. c7 {[%clk 0:00:32]} 35... Rc8 {[%clk
0:00:18.7]} 36. Bc6 {[%clk 0:00:31]} 36... Nf6 {[%clk 0:00:15.7]} 37. Qa6 {[%clk
0:00:20]} 37... Rxc7 {[%clk 0:00:13.2]} 38. Bxc7 {[%clk 0:00:19.9]} 38... Qxc7
{[%clk 0:00:13.6]} 39. Bxd5+ {[%clk 0:00:19.7]} 39... Nxd5 {[%clk 0:00:10.6]}
40. Qa8+ {[%clk 0:00:19.8]} 40... Kf7 {[%clk 0:00:06.5]} 41. Rxd5 {[%clk
0:00:17.1]} 41... Bxb4 {[%clk 0:00:03.6]} 42. Rb5 {[%clk 0:00:14]} 42... Be7
{[%clk 0:00:02.7]} 43. Qd5+ {[%clk 0:00:12.5]} 1-0

[Event "*** SCC Grand Prix: Titled Tuesday Blitz"]
[Site "Chess.com"]
[Date "2020.06.02"]
[Round "5"]
[White "imdvb6307"]
[Black "LamaChampetre"]
[Result "1-0"]
[WhiteElo "2381"]
[BlackElo "2177"]
[TimeControl "180+1"]
[EndTime "10:58:51 PDT"]
[Termination "imdvb6307 won by resignation"]

1. c4 {[%clk 0:02:58.2]} 1... g6 {[%clk 0:02:58]} 2. Nf3 {[%clk 0:02:56]} 2...
c5 {[%clk 0:02:56]} 3. d4 {[%clk 0:02:53.8]} 3... cxd4 {[%clk 0:02:56.9]} 4.
Nxd4 {[%clk 0:02:53.9]} 4... Bg7 {[%clk 0:02:56.4]} 5. e4 {[%clk 0:02:54]} 5...
Nc6 {[%clk 0:02:56.3]} 6. Be3 {[%clk 0:02:53.5]} 6... Nf6 {[%clk 0:02:50.1]} 7.
Nc3 {[%clk 0:02:53.4]} 7... Nxd4 {[%clk 0:02:49.8]} 8. Bxd4 {[%clk 0:02:52.6]}
8... d6 {[%clk 0:02:49.6]} 9. f3 {[%clk 0:02:42.1]} 9... O-O {[%clk 0:02:46.4]}
10. Qd2 {[%clk 0:02:40.7]} 10... Qa5 {[%clk 0:02:45.7]} 11. Rc1 {[%clk
0:02:16.3]} 11... Be6 {[%clk 0:02:44.2]} 12. Be2 {[%clk 0:02:13.6]} 12... Rfc8
{[%clk 0:02:42.8]} 13. b3 {[%clk 0:02:13.2]} 13... a6 {[%clk 0:02:41.9]} 14. Be3
{[%clk 0:01:55.8]} 14... b5 {[%clk 0:02:33.9]} 15. Nd5 {[%clk 0:01:54.5]} 15...
Qxd2+ {[%clk 0:02:20.5]} 16. Kxd2 {[%clk 0:01:53.9]} 16... Nxd5 {[%clk
0:02:17.9]} 17. cxd5 {[%clk 0:01:52]} 17... Bd7 {[%clk 0:02:16.9]} 18. Bb6
{[%clk 0:01:20.4]} 18... Bh6+ {[%clk 0:02:03.7]} 19. Be3 {[%clk 0:01:19.8]}
19... Bg7 {[%clk 0:01:57.6]} 20. h4 {[%clk 0:01:18.6]} 20... Rxc1 {[%clk
0:01:42.4]} 21. Rxc1 {[%clk 0:01:17.4]} 21... Rc8 {[%clk 0:01:43.3]} 22. Rxc8+
{[%clk 0:01:15.4]} 22... Bxc8 {[%clk 0:01:40.8]} 23. a4 {[%clk 0:01:15.3]} 23...
bxa4 {[%clk 0:01:33.7]} 24. bxa4 {[%clk 0:01:14.3]} 24... Kf8 {[%clk 0:01:33.4]}
25. a5 {[%clk 0:01:07.9]} 25... f5 {[%clk 0:01:29.7]} 26. exf5 {[%clk
0:01:03.6]} 26... gxf5 {[%clk 0:01:30.6]} 27. g4 {[%clk 0:01:04.1]} 27... fxg4
{[%clk 0:01:27.2]} 28. fxg4 {[%clk 0:01:03.8]} 28... Kf7 {[%clk 0:01:25.9]} 29.
g5 {[%clk 0:00:53.6]} 29... Bb7 {[%clk 0:00:55.7]} 30. h5 {[%clk 0:00:37.6]}
30... Be5 {[%clk 0:00:49.3]} 31. Bc4 {[%clk 0:00:27.1]} 31... Bc8 {[%clk
0:00:38.9]} 32. Bd3 {[%clk 0:00:25.8]} 32... Kg8 {[%clk 0:00:35.3]} 33. g6
{[%clk 0:00:21.9]} 33... hxg6 {[%clk 0:00:32.6]} 34. Bxg6 {[%clk 0:00:21.4]}
34... Kg7 {[%clk 0:00:27.5]} 35. Be4 {[%clk 0:00:20.4]} 35... Kf7 {[%clk
0:00:23.1]} 36. Bg5 {[%clk 0:00:19.9]} 36... Bh8 {[%clk 0:00:14.8]} 37. h6
{[%clk 0:00:18.6]} 37... e6 {[%clk 0:00:14.6]} 38. dxe6+ {[%clk 0:00:18]} 38...
Kxe6 {[%clk 0:00:15.5]} 39. Bd3 {[%clk 0:00:17.5]} 39... Ke5 {[%clk 0:00:12]}
40. Ke3 {[%clk 0:00:17.6]} 40... d5 {[%clk 0:00:11.3]} 41. Bf4+ {[%clk
0:00:17.6]} 41... Ke6 {[%clk 0:00:10.2]} 42. Bc7 {[%clk 0:00:16.5]} 42... Kd7
{[%clk 0:00:08.5]} 43. Bb6 {[%clk 0:00:16.4]} 43... Kc6 {[%clk 0:00:08.1]} 44.
Bd4 {[%clk 0:00:16.4]} 44... Kd6 {[%clk 0:00:07.8]} 45. Bxh8 {[%clk 0:00:15.5]}
1-0